[Event "Titled Tuesday Blitz May 23 Late 2023"]
[White "Bach, Matthias"]
[Black "Martinez Reyes, Pedro Ramon"]
[WhiteFideId "4603168"]
[BlackFideId "3901807"]
[WhiteElo "2130"]
[BlackElo "2340"]
[Result "1-0"]
[Round "04"]
[TimeControl "180+2"]
[Date "2023.05.23"]
[WhiteClock "0:00:39"]
[BlackClock "0:01:12"]

1. d4 {[%clk 0:02:56]}  Nf6 {[%clk 0:02:59]} 2. c4 {[%clk 0:02:56]}  g6 {[%clk 0:02:58]} 3. Nc3 {[%clk 0:02:55]}  Bg7 {[%clk 0:02:59]} 4. e4 {[%clk 0:02:55]}  d6 {[%clk 0:02:59]} 5. f4 {[%clk 0:02:55]}  c5 {[%clk 0:02:57]} 6. d5 {[%clk 0:02:53]}  O-O {[%clk 0:02:56]} 7. Nf3 {[%clk 0:02:54]}  e6 {[%clk 0:02:55]} 8. Be2 {[%clk 0:02:54]}  exd5 {[%clk 0:02:55]} 9. cxd5 {[%clk 0:02:55]}  Re8 {[%clk 0:02:55]} 10. e5 {[%clk 0:02:55]}  Nfd7 {[%clk 0:02:54]} 11. e6 {[%clk 0:02:53]}  Nf6 {[%clk 0:02:51]} 12. f5 {[%clk 0:02:44]}  gxf5 {[%clk 0:02:49]} 13. exf7+ {[%clk 0:02:38]}  Kxf7 {[%clk 0:02:49]} 14. O-O {[%clk 0:02:38]}  Kg8 {[%clk 0:02:47]} 15. Nh4 {[%clk 0:02:35]}  Na6 {[%clk 0:02:29]} 16. Bg5 {[%clk 0:02:28]}  Re5 {[%clk 0:02:25]} 17. Bd3 {[%clk 0:02:17]}  Nb4 {[%clk 0:02:22]} 18. Bxf5 {[%clk 0:02:10]}  c4 {[%clk 0:02:04]} 19. Bxc8 {[%clk 0:01:41]}  Rxg5 {[%clk 0:02:04]} 20. Be6+ {[%clk 0:01:39]}  Kh8 {[%clk 0:02:04]} 21. Nf3 {[%clk 0:01:34]}  Rh5 {[%clk 0:01:52]} 22. Nd4 {[%clk 0:01:32]}  Qb6 {[%clk 0:01:51]} 23. Kh1 {[%clk 0:01:30]}  Nd3 {[%clk 0:01:51]} 24. Nf5 {[%clk 0:01:25]}  Qxb2 {[%clk 0:01:38]} 25. Nxg7 {[%clk 0:01:03]}  Kxg7 {[%clk 0:01:34]} 26. Rxf6 {[%clk 0:00:44]}  Kxf6 {[%clk 0:01:34]} 27. Qf3+ {[%clk 0:00:43]}  Kg7 {[%clk 0:01:31]} 28. Rf1 {[%clk 0:00:41]}  Rg5 {[%clk 0:01:12]} 29. Qf6# {[%clk 0:00:39]} 1-0


[Site "https://www.chess.com"]

[Event "Titled Tuesday Blitz May 23 Late 2023"]
[White "Guerra Tulcan, Lenin"]
[Black "Lalanne, Pablo"]
[WhiteFideId "3601382"]
[BlackFideId "112151"]
[WhiteElo "2368"]
[BlackElo "2120"]
[Result "1-0"]
[Round "04"]
[TimeControl "180+2"]
[Date "2023.05.23"]
[WhiteClock "0:00:16"]
[BlackClock "0:00:09"]

1. e4 {[%clk 0:03:00]}  c5 {[%clk 0:02:58]} 2. Nf3 {[%clk 0:03:00]}  d6 {[%clk 0:02:59]} 3. b4 {[%clk 0:03:00]}  cxb4 {[%clk 0:02:58]} 4. a3 {[%clk 0:03:00]}  Nf6 {[%clk 0:02:51]} 5. Bd3 {[%clk 0:02:56]}  Nc6 {[%clk 0:02:50]} 6. O-O {[%clk 0:02:54]}  e6 {[%clk 0:02:48]} 7. Bb2 {[%clk 0:02:48]}  Be7 {[%clk 0:02:46]} 8. Re1 {[%clk 0:02:23]}  O-O {[%clk 0:02:45]} 9. e5 {[%clk 0:02:17]}  dxe5 {[%clk 0:02:42]} 10. Nxe5 {[%clk 0:02:17]}  Nxe5 {[%clk 0:02:36]} 11. Bxe5 {[%clk 0:02:18]}  bxa3 {[%clk 0:02:29]} 12. Nxa3 {[%clk 0:02:17]}  Bd7 {[%clk 0:02:25]} 13. Qf3 {[%clk 0:02:12]}  Bc6 {[%clk 0:02:23]} 14. Qh3 {[%clk 0:02:11]}  g6 {[%clk 0:02:09]} 15. Nc4 {[%clk 0:02:08]}  b6 {[%clk 0:01:53]} 16. Ne3 {[%clk 0:01:46]}  Nd7 {[%clk 0:01:38]} 17. Bg3 {[%clk 0:00:50]}  Bf6 {[%clk 0:01:31]} 18. Ng4 {[%clk 0:00:50]}  Bg7 {[%clk 0:01:22]} 19. Bh4 {[%clk 0:00:46]}  Qc7 {[%clk 0:01:00]} 20. Bg5 {[%clk 0:00:41]}  h5 {[%clk 0:00:55]} 21. Nh6+ {[%clk 0:00:37]}  Kh8 {[%clk 0:00:38]} 22. Nxf7+ {[%clk 0:00:37]}  Rxf7 {[%clk 0:00:27]} 23. Bxg6 {[%clk 0:00:37]}  Ne5 {[%clk 0:00:21]} 24. Qxh5+ {[%clk 0:00:36]}  Kg8 {[%clk 0:00:21]} 25. Rxe5 {[%clk 0:00:25]}  Qxe5 {[%clk 0:00:18]} 26. Bxf7+ {[%clk 0:00:24]}  Kf8 {[%clk 0:00:19]} 27. Rf1 {[%clk 0:00:23]}  Qd5 {[%clk 0:00:15]} 28. f3 {[%clk 0:00:20]}  Qd4+ {[%clk 0:00:14]} 29. Be3 {[%clk 0:00:18]}  Qf6 {[%clk 0:00:14]} 30. Bg6 {[%clk 0:00:18]}  Be8 {[%clk 0:00:12]} 31. Bxe8 {[%clk 0:00:17]}  Rxe8 {[%clk 0:00:13]} 32. f4 {[%clk 0:00:17]}  Qf7 {[%clk 0:00:13]} 33. Qg4 {[%clk 0:00:16]}  Kg8 {[%clk 0:00:12]} 34. f5 {[%clk 0:00:17]}  e5 {[%clk 0:00:13]} 35. f6 {[%clk 0:00:16]}  e4 {[%clk 0:00:13]} 36. fxg7 {[%clk 0:00:16]}  Qxg7 {[%clk 0:00:13]} 37. Qxg7+ {[%clk 0:00:16]}  Kxg7 {[%clk 0:00:13]} 38. Ra1 {[%clk 0:00:16]}  Re7 {[%clk 0:00:12]} 39. g4 {[%clk 0:00:16]}  Rc7 {[%clk 0:00:13]} 40. c3 {[%clk 0:00:15]}  Kg6 {[%clk 0:00:09]} 41. Kg2 {[%clk 0:00:16]} 1-0


[Site "https://www.chess.com"]

[Event "Titled Tuesday Blitz May 23 Late 2023"]
[White "Vaglio Munoz, Jaime"]
[Black "Mihajlov, Sebastian"]
[WhiteFideId "6500145"]
[BlackFideId "1512110"]
[WhiteElo "2199"]
[BlackElo "2478"]
[Result "0-1"]
[Round "04"]
[TimeControl "180+2"]
[Date "2023.05.23"]
[WhiteClock "0:00:13"]
[BlackClock "0:01:24"]

1. Nf3 {[%clk 0:03:00]}  Nf6 {[%clk 0:02:52]} 2. c4 {[%clk 0:03:00]}  c6 {[%clk 0:02:51]} 3. b3 {[%clk 0:03:00]}  d5 {[%clk 0:02:48]} 4. Bb2 {[%clk 0:03:00]}  Bf5 {[%clk 0:02:48]} 5. g3 {[%clk 0:03:00]}  e6 {[%clk 0:02:48]} 6. Bg2 {[%clk 0:03:00]}  Nbd7 {[%clk 0:02:49]} 7. O-O {[%clk 0:03:00]}  Be7 {[%clk 0:02:50]} 8. h3 {[%clk 0:03:00]}  O-O {[%clk 0:02:50]} 9. d3 {[%clk 0:02:59]}  h6 {[%clk 0:02:51]} 10. a3 {[%clk 0:02:58]}  Bh7 {[%clk 0:02:52]} 11. b4 {[%clk 0:02:58]}  a5 {[%clk 0:02:52]} 12. b5 {[%clk 0:02:57]}  cxb5 {[%clk 0:02:52]} 13. cxb5 {[%clk 0:02:58]}  a4 {[%clk 0:02:53]} 14. Nc3 {[%clk 0:02:57]}  Qa5 {[%clk 0:02:53]} 15. Rb1 {[%clk 0:02:54]}  Nc5 {[%clk 0:02:51]} 16. Ba1 {[%clk 0:02:50]}  Rfc8 {[%clk 0:02:50]} 17. b6 {[%clk 0:02:42]}  Nb3 {[%clk 0:02:48]} 18. Na2 {[%clk 0:01:03]}  Ra6 {[%clk 0:02:33]} 19. Nd4 {[%clk 0:01:02]}  Rxb6 {[%clk 0:02:31]} 20. Nc2 {[%clk 0:00:54]}  Rbc6 {[%clk 0:02:21]} 21. Ncb4 {[%clk 0:00:53]}  R6c7 {[%clk 0:02:22]} 22. Be5 {[%clk 0:00:52]}  Rc5 {[%clk 0:02:18]} 23. Rxb3 {[%clk 0:00:50]}  axb3 {[%clk 0:02:17]} 24. Qxb3 {[%clk 0:00:51]}  Nd7 {[%clk 0:02:10]} 25. Bd4 {[%clk 0:00:50]}  R5c7 {[%clk 0:02:09]} 26. Rb1 {[%clk 0:00:43]}  Nc5 {[%clk 0:02:04]} 27. Qb2 {[%clk 0:00:43]}  Bf8 {[%clk 0:01:58]} 28. f4 {[%clk 0:00:38]}  b5 {[%clk 0:01:42]} 29. g4 {[%clk 0:00:31]}  Na6 {[%clk 0:01:39]} 30. Kf2 {[%clk 0:00:29]}  Nxb4 {[%clk 0:01:38]} 31. Nxb4 {[%clk 0:00:26]}  Ra8 {[%clk 0:01:29]} 32. Nc2 {[%clk 0:00:21]}  Qa4 {[%clk 0:01:28]} 33. Bc3 {[%clk 0:00:19]}  Rac8 {[%clk 0:01:27]} 34. Bb4 {[%clk 0:00:18]}  Rxc2 {[%clk 0:01:26]} 35. Qd4 {[%clk 0:00:18]}  Bxb4 {[%clk 0:01:23]} 36. axb4 {[%clk 0:00:17]}  Rxe2+ {[%clk 0:01:21]} 37. Kxe2 {[%clk 0:00:17]}  Qc2+ {[%clk 0:01:21]} 38. Ke3 {[%clk 0:00:17]}  Qxb1 {[%clk 0:01:22]} 39. Bf3 {[%clk 0:00:17]}  Qe1+ {[%clk 0:01:22]} 40. Be2 {[%clk 0:00:17]}  Qg1+ {[%clk 0:01:23]} 41. Kf3 {[%clk 0:00:13]}  Qxd4 {[%clk 0:01:24]} 0-1


[Site "https://www.chess.com"]

[Event "Titled Tuesday Blitz May 23 Late 2023"]
[White "Kleiman, Jake"]
[Black "zsizsi99"]
[WhiteFideId "2020041"]
[WhiteElo "2614"]
[BlackElo "2395"]
[Result "1/2-1/2"]
[Round "04"]
[TimeControl "180+2"]
[Date "2023.05.23"]
[WhiteClock "0:00:10"]
[BlackClock "0:00:03"]

1. e4 {[%clk 0:02:59]}  c5 {[%clk 0:02:58]} 2. c3 {[%clk 0:02:59]}  Nf6 {[%clk 0:02:57]} 3. e5 {[%clk 0:02:59]}  Nd5 {[%clk 0:02:58]} 4. Bc4 {[%clk 0:03:00]}  Nb6 {[%clk 0:02:49]} 5. Bb3 {[%clk 0:03:00]}  c4 {[%clk 0:02:49]} 6. Bc2 {[%clk 0:03:00]}  Nc6 {[%clk 0:02:48]} 7. Nf3 {[%clk 0:03:01]}  d6 {[%clk 0:02:43]} 8. exd6 {[%clk 0:03:01]}  Qxd6 {[%clk 0:02:43]} 9. O-O {[%clk 0:03:01]}  Bg4 {[%clk 0:02:42]} 10. Qe2 {[%clk 0:02:59]}  e5 {[%clk 0:02:40]} 11. Na3 {[%clk 0:02:58]}  Qd5 {[%clk 0:02:22]} 12. Be4 {[%clk 0:02:54]}  Qc5 {[%clk 0:02:19]} 13. b3 {[%clk 0:02:14]}  Bxf3 {[%clk 0:02:07]} 14. Bxf3 {[%clk 0:02:10]}  cxb3 {[%clk 0:01:53]} 15. axb3 {[%clk 0:02:11]}  Be7 {[%clk 0:01:40]} 16. Nc4 {[%clk 0:01:57]}  Nxc4 {[%clk 0:01:36]} 17. bxc4 {[%clk 0:01:57]}  Qd6 {[%clk 0:01:17]} 18. Ba3 {[%clk 0:01:32]}  Qc7 {[%clk 0:01:17]} 19. Bxc6+ {[%clk 0:01:22]}  bxc6 {[%clk 0:01:13]} 20. Bxe7 {[%clk 0:01:19]}  Qxe7 {[%clk 0:01:08]} 21. Ra5 {[%clk 0:01:11]}  f6 {[%clk 0:01:05]} 22. d4 {[%clk 0:00:38]}  exd4 {[%clk 0:00:58]} 23. Qh5+ {[%clk 0:00:36]}  g6 {[%clk 0:00:52]} 24. Qf3 {[%clk 0:00:36]}  O-O {[%clk 0:00:47]} 25. cxd4 {[%clk 0:00:35]}  Rfc8 {[%clk 0:00:39]} 26. Rfa1 {[%clk 0:00:34]}  Qb4 {[%clk 0:00:32]} 27. Qxf6 {[%clk 0:00:30]}  Qxc4 {[%clk 0:00:32]} 28. h4 {[%clk 0:00:28]}  Rc7 {[%clk 0:00:30]} 29. Rc5 {[%clk 0:00:23]}  Qf7 {[%clk 0:00:29]} 30. Rxc6 {[%clk 0:00:23]}  Qxf6 {[%clk 0:00:25]} 31. Rxf6 {[%clk 0:00:24]}  a5 {[%clk 0:00:25]} 32. Rf3 {[%clk 0:00:21]}  a4 {[%clk 0:00:17]} 33. g3 {[%clk 0:00:20]}  Rca7 {[%clk 0:00:12]} 34. Raa3 {[%clk 0:00:20]}  Rd8 {[%clk 0:00:06]} 35. Rf4 {[%clk 0:00:17]}  Rb8 {[%clk 0:00:04]} 36. Rff3 {[%clk 0:00:16]}  Rb4 {[%clk 0:00:04]} 37. Rfd3 {[%clk 0:00:16]}  Kf7 {[%clk 0:00:04]} 38. Kg2 {[%clk 0:00:15]}  Ke6 {[%clk 0:00:04]} 39. Kf3 {[%clk 0:00:16]}  Kd5 {[%clk 0:00:05]} 40. Ke3 {[%clk 0:00:16]}  Re7+ {[%clk 0:00:05]} 41. Kf4 {[%clk 0:00:15]}  Re4+ {[%clk 0:00:05]} 42. Kg5 {[%clk 0:00:15]}  Rexd4 {[%clk 0:00:04]} 43. Rxd4+ {[%clk 0:00:15]}  Rxd4 {[%clk 0:00:04]} 44. Kh6 {[%clk 0:00:15]}  Kc5 {[%clk 0:00:04]} 45. Kxh7 {[%clk 0:00:15]}  Kb4 {[%clk 0:00:05]} 46. Ra1 {[%clk 0:00:16]}  Rd6 {[%clk 0:00:04]} 47. Kh6 {[%clk 0:00:14]}  a3 {[%clk 0:00:04]} 48. f4 {[%clk 0:00:14]}  Kb3 {[%clk 0:00:04]} 49. g4 {[%clk 0:00:14]}  Kb2 {[%clk 0:00:04]} 50. Rh1 {[%clk 0:00:14]}  Rc6 {[%clk 0:00:03]} 51. Rh2+ {[%clk 0:00:13]}  Rc2 {[%clk 0:00:02]} 52. Rh1 {[%clk 0:00:09]}  a2 {[%clk 0:00:03]} 53. f5 {[%clk 0:00:08]}  gxf5 {[%clk 0:00:02]} 54. gxf5 {[%clk 0:00:09]}  Rc1 {[%clk 0:00:03]} 55. Rh2+ {[%clk 0:00:09]}  Rc2 {[%clk 0:00:03]} 56. Rh1 {[%clk 0:00:09]}  Rc1 {[%clk 0:00:03]} 57. Rh2+ {[%clk 0:00:10]}  Rc2 {[%clk 0:00:03]} 58. Rh1 {[%clk 0:00:10]} 1/2-1/2


[Site "https://www.chess.com"]

[Event "Titled Tuesday Blitz May 23 Late 2023"]
[White "Kiremitciyan, Ari"]
[Black "Kohler, Aran"]
[WhiteFideId "6373445"]
[BlackFideId "1002856"]
[WhiteElo "2181"]
[BlackElo "2370"]
[Result "1-0"]
[Round "04"]
[TimeControl "180+2"]
[Date "2023.05.23"]
[WhiteClock "0:01:02"]
[BlackClock "0:00:00"]

1. e4 {[%clk 0:03:00]}  c6 {[%clk 0:02:58]} 2. d4 {[%clk 0:02:58]}  d5 {[%clk 0:02:59]} 3. exd5 {[%clk 0:02:59]}  cxd5 {[%clk 0:02:59]} 4. Bd3 {[%clk 0:02:59]}  a6 {[%clk 0:02:58]} 5. Nf3 {[%clk 0:02:58]}  Bg4 {[%clk 0:02:56]} 6. O-O {[%clk 0:02:58]}  Nc6 {[%clk 0:02:55]} 7. c3 {[%clk 0:02:58]}  Nf6 {[%clk 0:02:48]} 8. Re1 {[%clk 0:02:58]}  e6 {[%clk 0:02:49]} 9. Nbd2 {[%clk 0:02:55]}  Bd6 {[%clk 0:02:46]} 10. Nf1 {[%clk 0:02:56]}  O-O {[%clk 0:02:42]} 11. Bg5 {[%clk 0:02:55]}  h6 {[%clk 0:02:40]} 12. Bh4 {[%clk 0:02:54]}  e5 {[%clk 0:02:22]} 13. dxe5 {[%clk 0:02:43]}  Nxe5 {[%clk 0:02:23]} 14. Be2 {[%clk 0:02:42]}  Nxf3+ {[%clk 0:01:40]} 15. Bxf3 {[%clk 0:02:43]}  Be6 {[%clk 0:01:35]} 16. Ne3 {[%clk 0:02:40]}  Be7 {[%clk 0:01:32]} 17. Bxf6 {[%clk 0:02:38]}  Bxf6 {[%clk 0:01:32]} 18. Nxd5 {[%clk 0:02:35]}  Bxd5 {[%clk 0:01:32]} 19. Bxd5 {[%clk 0:02:36]}  Qb6 {[%clk 0:01:32]} 20. Qb3 {[%clk 0:02:29]}  Qxb3 {[%clk 0:01:28]} 21. axb3 {[%clk 0:02:28]}  Rab8 {[%clk 0:01:27]} 22. Re2 {[%clk 0:02:21]}  Rfd8 {[%clk 0:01:26]} 23. c4 {[%clk 0:02:21]}  Kf8 {[%clk 0:01:18]} 24. g3 {[%clk 0:02:20]}  Bd4 {[%clk 0:00:58]} 25. Rd1 {[%clk 0:02:11]}  Bc5 {[%clk 0:00:58]} 26. Kg2 {[%clk 0:02:11]}  b5 {[%clk 0:00:53]} 27. Rd3 {[%clk 0:02:09]}  bxc4 {[%clk 0:00:50]} 28. bxc4 {[%clk 0:02:09]}  a5 {[%clk 0:00:49]} 29. b3 {[%clk 0:02:05]}  Rd7 {[%clk 0:00:40]} 30. Rf3 {[%clk 0:02:05]}  f6 {[%clk 0:00:24]} 31. h4 {[%clk 0:02:05]}  Bb4 {[%clk 0:00:23]} 32. h5 {[%clk 0:02:03]}  Re7 {[%clk 0:00:21]} 33. Rxe7 {[%clk 0:01:58]}  Kxe7 {[%clk 0:00:20]} 34. Re3+ {[%clk 0:01:57]}  Kf8 {[%clk 0:00:21]} 35. Re6 {[%clk 0:01:52]}  Re8 {[%clk 0:00:17]} 36. Ra6 {[%clk 0:01:50]}  Re7 {[%clk 0:00:10]} 37. Kf3 {[%clk 0:01:48]}  Rd7 {[%clk 0:00:07]} 38. Ra8+ {[%clk 0:01:46]}  Ke7 {[%clk 0:00:08]} 39. Rg8 {[%clk 0:01:44]}  Kd6 {[%clk 0:00:08]} 40. Kg4 {[%clk 0:01:43]}  Re7 {[%clk 0:00:08]} 41. f4 {[%clk 0:01:41]}  Be1 {[%clk 0:00:07]} 42. Kf3 {[%clk 0:01:36]}  Bd2 {[%clk 0:00:06]} 43. Rd8+ {[%clk 0:01:30]}  Kc5 {[%clk 0:00:06]} 44. Rb8 {[%clk 0:01:26]}  Bb4 {[%clk 0:00:05]} 45. Kg4 {[%clk 0:01:25]}  Kd4 {[%clk 0:00:03]} 46. Kf5 {[%clk 0:01:23]}  Ke3 {[%clk 0:00:03]} 47. Rc8 {[%clk 0:01:05]}  Kf2 {[%clk 0:00:01]} 48. g4 {[%clk 0:01:05]}  Kg3 {[%clk 0:00:00]} 49. c5 {[%clk 0:01:02]} 1-0


[Site "https://www.chess.com"]

[Event "Titled Tuesday Blitz May 23 Late 2023"]
[White "Gerbelli Neto, Eduardo"]
[Black "Keleberda, Tymur"]
[WhiteFideId "2103281"]
[BlackFideId "14174294"]
[WhiteElo "2178"]
[BlackElo "2198"]
[Result "1-0"]
[Round "04"]
[TimeControl "180+2"]
[Date "2023.05.23"]
[WhiteClock "0:00:24"]
[BlackClock "0:00:28"]

1. e4 {[%clk 0:03:00]}  c5 {[%clk 0:02:41]} 2. Nc3 {[%clk 0:02:59]}  d6 {[%clk 0:02:41]} 3. f4 {[%clk 0:03:00]}  g6 {[%clk 0:02:41]} 4. Nf3 {[%clk 0:03:01]}  Bg7 {[%clk 0:02:41]} 5. Bb5+ {[%clk 0:03:01]}  Nd7 {[%clk 0:02:39]} 6. O-O {[%clk 0:02:52]}  e6 {[%clk 0:02:39]} 7. d3 {[%clk 0:02:50]}  Ne7 {[%clk 0:02:38]} 8. Qe1 {[%clk 0:02:49]}  O-O {[%clk 0:02:36]} 9. Bxd7 {[%clk 0:02:26]}  Bxd7 {[%clk 0:02:36]} 10. Bd2 {[%clk 0:02:19]}  b5 {[%clk 0:02:24]} 11. a3 {[%clk 0:02:04]}  a5 {[%clk 0:02:23]} 12. Rb1 {[%clk 0:01:50]}  b4 {[%clk 0:02:22]} 13. axb4 {[%clk 0:01:50]}  axb4 {[%clk 0:02:22]} 14. Ne2 {[%clk 0:01:50]}  Bb5 {[%clk 0:02:18]} 15. b3 {[%clk 0:01:46]}  Ra2 {[%clk 0:02:17]} 16. Rc1 {[%clk 0:01:45]}  Nc6 {[%clk 0:02:10]} 17. f5 {[%clk 0:01:42]}  exf5 {[%clk 0:02:04]} 18. exf5 {[%clk 0:01:43]}  Re8 {[%clk 0:02:04]} 19. Qf2 {[%clk 0:01:38]}  Bxd3 {[%clk 0:02:02]} 20. cxd3 {[%clk 0:01:34]}  Ne5 {[%clk 0:01:41]} 21. fxg6 {[%clk 0:01:27]}  fxg6 {[%clk 0:01:33]} 22. Nxe5 {[%clk 0:01:27]}  Rxd2 {[%clk 0:01:33]} 23. Qf7+ {[%clk 0:01:12]}  Kh8 {[%clk 0:01:33]} 24. Nxg6+ {[%clk 0:01:10]}  hxg6 {[%clk 0:01:34]} 25. Nf4 {[%clk 0:01:10]}  Re3 {[%clk 0:01:16]} 26. Nxg6+ {[%clk 0:00:56]}  Kh7 {[%clk 0:01:16]} 27. Rf4 {[%clk 0:00:52]}  Ree2 {[%clk 0:00:25]} 28. Rh4+ {[%clk 0:00:48]}  Qxh4 {[%clk 0:00:25]} 29. Nxh4 {[%clk 0:00:49]}  Kh8 {[%clk 0:00:25]} 30. Rf1 {[%clk 0:00:38]}  Bd4+ {[%clk 0:00:22]} 31. Kh1 {[%clk 0:00:38]}  Bg7 {[%clk 0:00:20]} 32. Qh5+ {[%clk 0:00:28]}  Kg8 {[%clk 0:00:19]} 33. Qf3 {[%clk 0:00:27]}  Kh8 {[%clk 0:00:16]} 34. Nf5 {[%clk 0:00:23]}  Be5 {[%clk 0:00:13]} 35. Qh5+ {[%clk 0:00:20]}  Kg8 {[%clk 0:00:12]} 36. Qe8+ {[%clk 0:00:17]}  Kh7 {[%clk 0:00:12]} 37. Qf7+ {[%clk 0:00:16]}  Kh8 {[%clk 0:00:11]} 38. Qh5+ {[%clk 0:00:16]}  Kg8 {[%clk 0:00:11]} 39. Nh4 {[%clk 0:00:15]}  Rf2 {[%clk 0:00:11]} 40. Qg6+ {[%clk 0:00:13]}  Kh8 {[%clk 0:00:10]} 41. Re1 {[%clk 0:00:12]}  Rde2 {[%clk 0:00:10]} 42. Qh5+ {[%clk 0:00:12]}  Kg7 {[%clk 0:00:10]} 43. Qxe2 {[%clk 0:00:12]}  Rxe2 {[%clk 0:00:10]} 44. Rxe2 {[%clk 0:00:13]}  Kf6 {[%clk 0:00:11]} 45. Nf3 {[%clk 0:00:13]}  Bc3 {[%clk 0:00:11]} 46. g4 {[%clk 0:00:13]}  d5 {[%clk 0:00:11]} 47. Kg2 {[%clk 0:00:14]}  Kg6 {[%clk 0:00:10]} 48. h4 {[%clk 0:00:14]}  Kf6 {[%clk 0:00:10]} 49. Kg3 {[%clk 0:00:14]}  c4 {[%clk 0:00:10]} 50. dxc4 {[%clk 0:00:14]}  dxc4 {[%clk 0:00:11]} 51. bxc4 {[%clk 0:00:14]}  b3 {[%clk 0:00:12]} 52. Nd2 {[%clk 0:00:12]}  b2 {[%clk 0:00:12]} 53. Nb1 {[%clk 0:00:13]}  Be5+ {[%clk 0:00:13]} 54. Kf3 {[%clk 0:00:13]}  Bd4 {[%clk 0:00:13]} 55. Ke4 {[%clk 0:00:13]}  Bb6 {[%clk 0:00:13]} 56. Kd5 {[%clk 0:00:14]}  Bd8 {[%clk 0:00:14]} 57. c5 {[%clk 0:00:15]}  Kf7 {[%clk 0:00:15]} 58. c6 {[%clk 0:00:15]}  Bxh4 {[%clk 0:00:14]} 59. Rxb2 {[%clk 0:00:15]}  Bd8 {[%clk 0:00:13]} 60. Rc2 {[%clk 0:00:15]}  Kf6 {[%clk 0:00:13]} 61. Re2 {[%clk 0:00:16]}  Kg5 {[%clk 0:00:13]} 62. Kd6 {[%clk 0:00:16]}  Kxg4 {[%clk 0:00:13]} 63. Kd7 {[%clk 0:00:17]}  Ba5 {[%clk 0:00:13]} 64. c7 {[%clk 0:00:17]}  Bxc7 {[%clk 0:00:13]} 65. Kxc7 {[%clk 0:00:18]}  Kf3 {[%clk 0:00:14]} 66. Nc3 {[%clk 0:00:19]}  Kf4 {[%clk 0:00:15]} 67. Kd6 {[%clk 0:00:19]}  Kf3 {[%clk 0:00:16]} 68. Kd5 {[%clk 0:00:20]}  Kf4 {[%clk 0:00:17]} 69. Kd4 {[%clk 0:00:19]}  Kf3 {[%clk 0:00:18]} 70. Kd3 {[%clk 0:00:20]}  Kg4 {[%clk 0:00:19]} 71. Rf2 {[%clk 0:00:21]}  Kg3 {[%clk 0:00:19]} 72. Ke3 {[%clk 0:00:21]}  Kg4 {[%clk 0:00:20]} 73. Ke4 {[%clk 0:00:21]}  Kg5 {[%clk 0:00:20]} 74. Rg2+ {[%clk 0:00:22]}  Kf6 {[%clk 0:00:21]} 75. Rg1 {[%clk 0:00:22]}  Ke6 {[%clk 0:00:22]} 76. Rg6+ {[%clk 0:00:22]}  Kf7 {[%clk 0:00:23]} 77. Kf5 {[%clk 0:00:23]}  Ke7 {[%clk 0:00:24]} 78. Ke5 {[%clk 0:00:23]}  Kf7 {[%clk 0:00:24]} 79. Rg5 {[%clk 0:00:23]}  Ke7 {[%clk 0:00:24]} 80. Rg7+ {[%clk 0:00:23]}  Kf8 {[%clk 0:00:24]} 81. Kf6 {[%clk 0:00:23]}  Ke8 {[%clk 0:00:25]} 82. Ke6 {[%clk 0:00:24]}  Kd8 {[%clk 0:00:26]} 83. Nd5 {[%clk 0:00:23]}  Kc8 {[%clk 0:00:27]} 84. Kd6 {[%clk 0:00:23]}  Kb8 {[%clk 0:00:27]} 85. Kc6 {[%clk 0:00:24]}  Kc8 {[%clk 0:00:28]} 86. Rg8# {[%clk 0:00:24]} 1-0


[Site "https://www.chess.com"]

[Event "Titled Tuesday Blitz May 23 Late 2023"]
[White "Chabris, Christopher"]
[Black "Martic, Ivan"]
[WhiteFideId "2005263"]
[BlackFideId "929301"]
[WhiteElo "2361"]
[BlackElo "2360"]
[Result "0-1"]
[Round "04"]
[TimeControl "180+2"]
[Date "2023.05.23"]
[WhiteClock "0:00:12"]
[BlackClock "0:01:26"]

1. e4 {[%clk 0:03:00]}  c5 {[%clk 0:02:57]} 2. Nf3 {[%clk 0:03:00]}  Nc6 {[%clk 0:02:57]} 3. Bb5 {[%clk 0:03:00]}  d6 {[%clk 0:02:54]} 4. Bxc6+ {[%clk 0:02:59]}  bxc6 {[%clk 0:02:54]} 5. O-O {[%clk 0:02:59]}  e5 {[%clk 0:02:54]} 6. c3 {[%clk 0:03:00]}  f5 {[%clk 0:02:39]} 7. exf5 {[%clk 0:02:39]}  Bxf5 {[%clk 0:02:40]} 8. d4 {[%clk 0:02:39]}  e4 {[%clk 0:02:34]} 9. dxc5 {[%clk 0:02:30]}  exf3 {[%clk 0:02:34]} 10. Qxf3 {[%clk 0:02:29]}  Ne7 {[%clk 0:02:21]} 11. cxd6 {[%clk 0:02:21]}  Qxd6 {[%clk 0:02:22]} 12. Re1 {[%clk 0:02:10]}  Qd5 {[%clk 0:02:19]} 13. Qe3 {[%clk 0:01:57]}  Kf7 {[%clk 0:02:16]} 14. c4 {[%clk 0:01:46]}  Qd3 {[%clk 0:02:13]} 15. Qf4 {[%clk 0:01:39]}  Ng6 {[%clk 0:02:10]} 16. Qc7+ {[%clk 0:01:38]}  Qd7 {[%clk 0:02:09]} 17. Qg3 {[%clk 0:01:36]}  Bd6 {[%clk 0:02:04]} 18. Qf3 {[%clk 0:01:28]}  Rhe8 {[%clk 0:01:58]} 19. Rd1 {[%clk 0:01:15]}  Qe6 {[%clk 0:01:39]} 20. Be3 {[%clk 0:01:07]}  Kg8 {[%clk 0:01:32]} 21. Nc3 {[%clk 0:00:56]}  Bg4 {[%clk 0:01:31]} 22. Qe4 {[%clk 0:00:12]}  Bxd1 {[%clk 0:01:26]} 0-1


[Site "https://www.chess.com"]

[Event "Titled Tuesday Blitz May 23 Late 2023"]
[White "Moral Garcia, Serafin"]
[Black "FuenfgegenWilly"]
[WhiteFideId "2201925"]
[WhiteElo "2274"]
[BlackElo "2358"]
[Result "0-1"]
[Round "04"]
[TimeControl "180+2"]
[Date "2023.05.23"]
[WhiteClock "0:00:24"]
[BlackClock "0:01:01"]

1. c4 {[%clk 0:03:00]}  e5 {[%clk 0:02:56]} 2. Nc3 {[%clk 0:03:00]}  Nc6 {[%clk 0:02:56]} 3. g3 {[%clk 0:02:59]}  f5 {[%clk 0:02:56]} 4. d3 {[%clk 0:02:58]}  Nf6 {[%clk 0:02:57]} 5. Bg2 {[%clk 0:02:58]}  Bb4 {[%clk 0:02:57]} 6. Bd2 {[%clk 0:02:57]}  Bxc3 {[%clk 0:02:57]} 7. Bxc3 {[%clk 0:02:57]}  d6 {[%clk 0:02:58]} 8. e3 {[%clk 0:02:55]}  O-O {[%clk 0:02:58]} 9. Ne2 {[%clk 0:02:55]}  Qe8 {[%clk 0:02:58]} 10. b4 {[%clk 0:02:45]}  f4 {[%clk 0:02:45]} 11. gxf4 {[%clk 0:02:42]}  Bg4 {[%clk 0:02:45]} 12. fxe5 {[%clk 0:02:32]}  Nxe5 {[%clk 0:02:40]} 13. Qc2 {[%clk 0:02:26]}  Bf3 {[%clk 0:02:34]} 14. Bxf3 {[%clk 0:02:17]}  Nxf3+ {[%clk 0:02:33]} 15. Kd1 {[%clk 0:02:18]}  Ng4 {[%clk 0:02:33]} 16. Ng3 {[%clk 0:02:10]}  Nfxh2 {[%clk 0:02:11]} 17. Be1 {[%clk 0:02:08]}  Qc6 {[%clk 0:02:03]} 18. e4 {[%clk 0:01:59]}  Qb6 {[%clk 0:01:58]} 19. c5 {[%clk 0:01:50]}  dxc5 {[%clk 0:01:58]} 20. bxc5 {[%clk 0:01:51]}  Qf6 {[%clk 0:01:58]} 21. Rb1 {[%clk 0:01:39]}  Rad8 {[%clk 0:01:54]} 22. Nf5 {[%clk 0:01:27]}  g6 {[%clk 0:01:42]} 23. Bc3 {[%clk 0:01:26]}  Nxf2+ {[%clk 0:01:34]} 24. Ke2 {[%clk 0:01:24]}  Qg5 {[%clk 0:01:15]} 25. Kxf2 {[%clk 0:01:16]}  gxf5 {[%clk 0:01:14]} 26. Qb3+ {[%clk 0:00:54]}  Rf7 {[%clk 0:01:14]} 27. Rbg1 {[%clk 0:00:26]}  Ng4+ {[%clk 0:01:11]} 28. Rxg4 {[%clk 0:00:26]}  fxg4+ {[%clk 0:01:07]} 29. Kg2 {[%clk 0:00:27]}  Qf4 {[%clk 0:01:03]} 30. Qd1 {[%clk 0:00:24]}  Qf2# {[%clk 0:01:01]} 0-1


[Site "https://www.chess.com"]